Cogmind - Beta 14 @@@ ROGUE MODE // 2024.08.25 @ 12:38:12 Player: Olafz Result: Destroyed by Y-54 Guardian with Flak Gun Performance ------------- Evolutions (3) 1500 Regions Visited (5) 1000 Robots Destroyed (0) 0 Value Destroyed (0) 0 Prototype IDs (0) 0 Alien Tech Used (0) 0 Bonus (834) 834 TOTAL SCORE: 3334 Bonus ------- Pacifist 834 Cogmind --------- Core Integrity 0/700 Matter 199/300 Energy 7/100 System Corruption 0% Temperature Cool (12) Movement Core (50) Location -7/Factory Parts ------- > --- POWER (1) -------- (None) > --- PROPULSION (4) --- (None) > --- UTILITY (6) ------ ECM Suite > --- WEAPON (2) ------- (None) > --- INVENTORY (5) ---- Micro Nuclear Core Micro Nuclear Core Greatsword Peak State ------------ > --- POWER ------------ Micro Nuclear Core > --- PROPULSION ------- Flight Unit Flight Unit > --- UTILITY ---------- ECM Suite > --- WEAPON ----------- (None) > --- INVENTORY -------- Micro Nuclear Core Flight Unit Greatsword [Rating: 8] Favorites ----------- Power Micro Nuclear Core Power Core Micro Nuclear Core Propulsion Flight Unit Flight Unit Flight Unit Utility ECM Suite Device ECM Suite Weapon None Build | -11 -10 -9 -9 -8 -7 ------- Run | Yrd Mat Mat Min Mat Fac Slots Evolved 6 | . . 2 . 2 2 Power . | . . . . . . Propulsion 2 | . . . . 1 1 Utility 4 | . . 2 . 1 1 Weapon . | . . . . . . Parts Attached 7 | . 2 . . 1 4 Power 1 | . . . . . 1 Engine . | . . . . . . Core 1 | . . . . . 1 Reactor . | . . . . . . Propulsion 5 | . 2 . . 1 2 Treads . | . . . . . . Leg . | . . . . . . Wheel . | . . . . . . Hover . | . . . . . . Flight 5 | . 2 . . 1 2 Utility 1 | . . . . . 1 Device 1 | . . . . . 1 Storage . | . . . . . . Processor . | . . . . . . Hackware . | . . . . . . Protection . | . . . . . . Artifact . | . . . . . . Weapon . | . . . . . . Energy Gun . | . . . . . . Energy Cannon . | . . . . . . Ballistic Gun . | . . . . . . Ballistic Cannon . | . . . . . . Launcher . | . . . . . . Special Weapon . | . . . . . . Impact Weapon . | . . . . . . Slashing Weapon . | . . . . . . Piercing Weapon . | . . . . . . Special Melee Weapon . | . . . . . . Unidentified Prototypes . | . . . . . . Parts Lost 5 | . 1 . . 1 3 Power . | . . . . . . Propulsion 5 | . 1 . . 1 3 Utility . | . . . . . . Weapon . | . . . . . . Highest Loss Streak 3 | . 1 . . 1 3 To Critical Strikes . | . . . . . . Average Slot Usage (%) 15 | . 14 11 11 9 18 Core 1 | . . . . . 3 Flight 10 | . 14 11 11 9 8 Device 3 | . . . . . 6 Peak Build Rating 8 | . 1 1 1 1 8 Average Rating 2 | . . 1 1 . 4 On Entrance . | . . 1 1 1 1 Naked Turns 8 | . 6 . . 2 . Heaviest Build 8 | . . . . . 8 Greatest Support 8 | 3 4 4 4 4 8 Greatest Overweight (x) 1 | . . . . . 1 Average Overweight (x) . | . . . . . . Largest Inventory Capacity 5 | 5 5 5 5 5 5 Average Capacity 5 | 5 5 5 5 5 5 Most Carried 4 | . 2 2 2 4 4 Average Carried 2 | . . 2 2 2 3 Final Capacity 5 | 5 5 5 5 5 5 Final Carried 4 | . 2 2 2 3 4 Class Distribution -------------------- 100% | Mutant Dominant Class ---------------- Mutant | -10/Materials Mutant | -9/Materials Mutant | -9/Mines Mutant | -8/Materials Mutant | -7/Factory Resources | -11 -10 -9 -9 -8 -7 ----------- Run | Yrd Mat Mat Min Mat Fac Matter Collected 144 | 134 . . . 10 . Remotely . | . . . . . . Salvage Created . | . . . . . . Parts . | . . . . . . Haulers Intercepted . | . . . . . . Recyclers Shooed . | . . . . . . Parts Field Recycled . | . . . . . . Retrieved Matter . | . . . . . . Parts Self-Destructed . | . . . . . . Prevented . | . . . . . . Kills | -11 -10 -9 -9 -8 -7 ------- Run | Yrd Mat Mat Min Mat Fac Combat Hostiles Destroyed . | . . . . . . Classes Destroyed . | . . . . . . Best Kill Streak . | . . . . . . Combat Bots Only . | . . . . . . Max Kills in Single Turn . | . . . . . . Gunslinging . | . . . . . . Exploded . | . . . . . . Melee . | . . . . . . Uniques/NPCs Destroyed . | . . . . . . Combat | -11 -10 -9 -9 -8 -7 -------- Run | Yrd Mat Mat Min Mat Fac Hostile Shots Fired 220 | . 24 2 8 20 166 Missed 113 | . 14 . 7 9 83 Damage Taken 1111 | . 139 22 9 103 838 Core 930 | . 113 22 9 83 703 Absorbed by Shields . | . . . . . . Core Remaining (%) 82 | 100 54 . 92 84 . Volleys Fired . | . . . . . . Largest . | . . . . . . Hottest . | . . . . . . Shots Fired . | . . . . . . Gun . | . . . . . . Cannon . | . . . . . . Launcher . | . . . . . . Special . | . . . . . . Kinetic . | . . . . . . Thermal . | . . . . . . Explosive . | . . . . . . Electromagnetic . | . . . . . . Robot Hit Streak . | . . . . . . Robot Miss Streak . | . . . . . . Penetration Max . | . . . . . . Secondary Targets . | . . . . . . Shots Hit Robots . | . . . . . . Core Hits . | . . . . . . Critical Kills . | . . . . . . Critical Parts Destroyed . | . . . . . . Critical Strikes . | . . . . . . Melee Attacks . | . . . . . . Impact . | . . . . . . Slashing . | . . . . . . Piercing . | . . . . . . Sneak Attacks . | . . . . . . Combat Hostiles . | . . . . . . Follow-up Attacks . | . . . . . . Damage Inflicted . | . . . . . . Guns . | . . . . . . Cannons . | . . . . . . Explosions . | . . . . . . Melee . | . . . . . . Ramming . | . . . . . . Kinetic . | . . . . . . Thermal . | . . . . . . Explosive . | . . . . . . Electromagnetic . | . . . . . . Impact . | . . . . . . Slashing . | . . . . . . Piercing . | . . . . . . Highest Corruption . | . . . . . . Average Corruption . | . . . . . . Corruption Purged . | . . . . . . Corruption Blocked . | . . . . . . Overload Shots . | . . . . . . Overflow Damage . | . . . . . . Projectiles . | . . . . . . Explosions . | . . . . . . Melee . | . . . . . . Knockbacks . | . . . . . . Impact . | . . . . . . Kinetic . | . . . . . . Secondary . | . . . . . . Self-Inflicted Damage . | . . . . . . Shots . | . . . . . . Rammed . | . . . . . . Targets Rammed . | . . . . . . Kicked . | . . . . . . Crushed . | . . . . . . Highest Temperature 17 | . 11 . . . 17 Average Temperature 11 | . 11 . . . 12 Received Heat Transfer 324 | . 96 12 . 18 198 Siege Activations . | . . . . . . Robots Corrupted . | . . . . . . Combat Hostiles . | . . . . . . Parts Fried . | . . . . . . Impact Corruptions . | . . . . . . Robots Melted . | . . . . . . Combat Hostiles . | . . . . . . Parts Melted . | . . . . . . Heat Transferred . | . . . . . . Parts Sabotaged . | . . . . . . Parts Stolen . | . . . . . . Parts Stripped . | . . . . . . Power Chain Reactions . | . . . . . . Alert | -11 -10 -9 -9 -8 -7 ------- Run | Yrd Mat Mat Min Mat Fac Peak Influence 110 | . 110 46 32 27 38 Initial 46 | . . 46 17 12 7 Average 21 | . 35 46 27 19 11 Maximum Alert Level . | . . . . . . Low Security (%) 100 | 100 100 100 100 100 100 Level 1 . | . . . . . . Level 2 . | . . . . . . Level 3 . | . . . . . . Level 4 . | . . . . . . Level 5 . | . . . . . . High Security . | . . . . . . Max Security . | . . . . . . Squads Dispatched 6 | . 5 . . . 1 Investigation 2 | . 2 . . . . Extermination . | . . . . . . Reinforcement 4 | . 3 . . . 1 Assault . | . . . . . . Garrison . | . . . . . . Intercept . | . . . . . . Searches Triggered . | . . . . . . Construction Impeded . | . . . . . . Haulers Reinforced . | . . . . . . Active Scanning Responses . | . . . . . . Cargo Convoy Interrupts . | . . . . . . Stealth | -11 -10 -9 -9 -8 -7 --------- Run | Yrd Mat Mat Min Mat Fac Distress Signals 3 | . 2 . . . 1 Communications Jammed . | . . . . . . Distress Signals . | . . . . . . Times Spotted 43 | . 9 1 6 6 21 Peak Tracking Total 10 | . 10 1 6 6 8 Tactical Retreats 4 | . 1 . . . 3 Traps | -11 -10 -9 -9 -8 -7 ------- Run | Yrd Mat Mat Min Mat Fac Traps Triggered 2 | . 2 . . . . Indirectly . | . . . . . . Trap Hack Attempts . | . . . . . . Triggered . | . . . . . . Disarmed . | . . . . . . Reprogrammed . | . . . . . . Reused . | . . . . . . Traps Extracted . | . . . . . . Installed . | . . . . . . Triggered . | . . . . . . Machines | -11 -10 -9 -9 -8 -7 ---------- Run | Yrd Mat Mat Min Mat Fac Machines Disabled . | . . . . . . Max in Single Turn . | . . . . . . Machines Repaired . | . . . . . . Machines Dismantled . | . . . . . . Machines Sabotaged . | . . . . . . Overloaded Fab Kills . | . . . . . . Hacking | -11 -10 -9 -9 -8 -7 --------- Run | Yrd Mat Mat Min Mat Fac Machines Accessed 8 | . 3 1 . 2 2 Terminals 8 | . 3 1 . 2 2 Fabricators . | . . . . . . Repair Stations . | . . . . . . Recycling Units . | . . . . . . Scanalyzers . | . . . . . . Garrison Access . | . . . . . . Total Hacks 18 | . 4 3 . 6 5 Successful 5 | . . 1 . 1 3 Failed 13 | . 4 2 . 5 2 Catastrophic 4 | . 2 1 . 1 . Database Lockouts . | . . . . . . Manual 18 | . 4 3 . 6 5 Terminals 18 | . 4 3 . 6 5 Fabricators . | . . . . . . Repair Stations . | . . . . . . Recycling Units . | . . . . . . Scanalyzers . | . . . . . . Garrison Access . | . . . . . . Terminal Hacks 1 | . . . . . 1 Level Access Points 1 | . . . . . 1 Fabricator Hacks . | . . . . . . Repair Station Hacks . | . . . . . . Recycling Unit Hacks . | . . . . . . Scanalyzer . | . . . . . . Garrison Access Hacks . | . . . . . . Unauthorized Hacks 4 | . . 1 . 1 2 Terminals 4 | . . 1 . 1 2 Botnet 4 | . . 1 . 1 2 Fabricators . | . . . . . . Repair Stations . | . . . . . . Recycling Units . | . . . . . . Scanalyzers . | . . . . . . Garrison Access . | . . . . . . Data Cores Recovered . | . . . . . . Used . | . . . . . . Hacking Detections 6 | . 3 . . 2 1 Full Trace Events . | . . . . . . Feedback Events . | . . . . . . Feedback Blocked . | . . . . . . Robot Schematics Acquired . | . . . . . . Robots Built . | . . . . . . Authchips . | . . . . . . Time . | . . . . . . Total Robot Build Rating . | . . . . . . Part Schematics Acquired . | . . . . . . Parts Built . | . . . . . . Authchips . | . . . . . . Time . | . . . . . . Total Part Build Rating . | . . . . . . Parts Repaired . | . . . . . . Time . | . . . . . . Parts Recycled . | . . . . . . Recycled Matter . | . . . . . . Retrieved Matter . | . . . . . . Retrieved Components . | . . . . . . Parts Scanalyzed . | . . . . . . Part Schematics Acquired . | . . . . . . Parts Damaged . | . . . . . . Bothacking | -11 -10 -9 -9 -8 -7 ------------ Run | Yrd Mat Mat Min Mat Fac Used RIF Installer . | . . . . . . Robots Hacked . | . . . . . . Non-combat . | . . . . . . Combat . | . . . . . . Robot Hacks Applied . | . . . . . . Relay Couplers Released . | . . . . . . Fabnet Peak Effective % . | . . . . . . Robots Rewired . | . . . . . . Allies Hacked . | . . . . . . Hacks Repelled . | . . . . . . Allies | -11 -10 -9 -9 -8 -7 -------- Run | Yrd Mat Mat Min Mat Fac Total Allies . | . . . . . . Largest Group . | . . . . . . Highest-Rated Group . | . . . . . . Highest-Rated Ally . | . . . . . . Total Orders . | . . . . . . Ally Attacks . | . . . . . . Total Damage . | . . . . . . Kills . | . . . . . . Allies Corrupted . | . . . . . . Allies Melted . | . . . . . . Intel | -11 -10 -9 -9 -8 -7 ------- Run | Yrd Mat Mat Min Mat Fac Robot Analysis Total . | . . . . . . Derelict Logs Recovered . | . . . . . . Drone Launches . | . . . . . . Drone Recoveries . | . . . . . . Exploration | -11 -10 -9 -9 -8 -7 ------------- Run | Yrd Mat Mat Min Mat Fac Turns Passed 309 | 9 86 23 3 44 144 Spaces Moved 719 | 18 201 58 9 102 331 Core 122 | 18 9 . . 3 92 Treads . | . . . . . . Legs . | . . . . . . Wheels . | . . . . . . Hover . | . . . . . . Flight 597 | . 192 58 9 99 239 Fastest Speed 37 | 50 40 40 40 40 37 Average Speed 41 | 50 40 40 40 40 41 Slowest Speed 120 | 50 50 40 40 50 120 Overloaded Moves . | . . . . . . Propulsion Burnouts . | . . . . . . Robots Hopped 12 | . 4 . 1 4 3 Cave-ins Triggered . | . . . . . . Exploration Rate (%) 17 | 3 56 8 5 22 13 Regions Visited 5 Branch Regions 1 Pre-discovered Areas . | . . . . . . Known Exits Taken . | . . . . . . Unknown Exits Taken 5 | 1 1 1 1 1 . Scrap Searched . | . . . . . . Spaces Dug . | . . . . . . Terrain Destroyed . | . . . . . . Melee . | . . . . . . Projectile . | . . . . . . AOE . | . . . . . . Terrain Rammed . | . . . . . . Walls Destroyed . | . . . . . . Machines Disabled . | . . . . . . Actions | -11 -10 -9 -9 -8 -7 --------- Run | Yrd Mat Mat Min Mat Fac Total 716 | 17 200 57 7 100 335 Wait . | . . . . . . Move 691 | 17 192 57 7 93 325 Hop 11 | . 4 . . 4 3 Pick Up 6 | . 2 . . 2 2 Fast Attach 3 | . 2 . . . 1 Attach 4 | . . . . 1 3 Detach 1 | . . . . . 1 Swap . | . . . . . . Drop . | . . . . . . Fire . | . . . . . . Melee . | . . . . . . Ram . | . . . . . . Kick . | . . . . . . Crush . | . . . . . . Escape Stasis . | . . . . . . Rewire . | . . . . . . Trap . | . . . . . . Miscellaneous . | . . . . . . Route ------- -11/Scrapyard -10/Materials (discovered 2 exits: *Mat / [*Min]) -9/Materials -9/Mines -8/Materials -7/Factory (discovered 5 exits: Fac x4 / [*Sto]) History --------- Turn | Location | Event 3 | -11/Scrapyard | Discovered new exit (range 15) 10 | -11/Scrapyard | Entered Materials 43 | -10/Materials | Discovered new exit (range 13) 90 | -10/Materials | Discovered new exit (range 16) 96 | -10/Materials | Entered another Materials area 96 | -9/Materials | Evolved 2 slots: Utility x2 112 | -9/Materials | Discovered new exit (range 15) 119 | -9/Materials | Entered Mines 119 | -9/Mines | Discovered new exit (range 9) 122 | -9/Mines | Entered Materials 122 | -8/Materials | Evolved 2 slots: Propulsion x1, Utility x1 162 | -8/Materials | Discovered new exit (range 10) 166 | -8/Materials | Entered Factory 166 | -7/Factory | Evolved 2 slots: Propulsion x1, Utility x1 271 | -7/Factory | Core integrity fell below 50% 287 | -7/Factory | Core integrity fell below 20% 295 | -7/Factory | Lost 3 parts (3n) 296 | -7/Factory | Identified exit to Factory 300 | -7/Factory | Build established: Mutant 307 | -7/Factory | Discovered new exit (range 12) 310 | -7/Factory | Destroyed by Y-54 Guardian with Flak Gun Last Messages --------------- Flight Unit destroyed. K-01 Serf collects debris. K-01 Serf cleans the Neutrino Reactor. W-25 Informer sends out distress signal. Connecting with Terminal... >>Trojan(Botnet) Trojan loaded successfully. Testing... Terminal linked with 1 system. Awaiting botnet instructions. >>Access(Main) Found 4 level access points to Factory: (183,162) (12,86) (21,25) (16,108) Map updated. O-16 Technician: "IFF HANDSHAKE FAILED. SECURING TERMINAL." ALERT: Hostiles spotted, dispatching reinforcements to Terminal F019. EXIT=FOUND Map ----- +----------------------------------------------------+ | ?????????????????????????# # #?????# | | ?????????????????????????# #########?????# | | ?????????????????????????# #?????????????# | | ?????????????????????????##############?????????# | | ????????????????????????????????# #???????# | | ????????????????????????????????# #???????# | | ????????????????????????????????# #???????# | | ????????????????????????????????#! #???????# | | ????????????????????????????????# [! #???????# | | ????????????????????????????????# !! ########## | | ????????????????????????????????# ! #? | | ????????????????????????????????# #???"" | | ????????????????????????????????# #???R """ | | ????????????????????????????????# #????" """ | | ?????????????? #######?????????# #????" """ | | ?????????????? ?????????# #??? | | ????????????? ????????# #? | | ????????????? ?????????? ??#######+# | | ???????????? ????????####+#########???# | | ???????????? ????????# ### # | | ????????????? ???????# | | ??????????????? ???????# | | ?????????????????# ???????# """" | | ????????????????## ##?????# """" ##### | | ????????????????# #?????# """" ##### | | ????????????????# @####### """" ## | | ????????????????# """" | | ????????????????# """" | | ????????????????# Y | | ????????????????# ggg | | ????????????????# | | ????????????????# #########+########### | | ????????????????# #???????????????????### | | ????????????????#####+#####?????????????????????# | | ????????????????????????????????????????????????# | | ????????????????????????????????????????????????# | | ????????????????????????????????????????????????# | | ????????????????????????????????????????????????# | | ????????????????????????????????????????????????# | | ????????????????????????????????????????????????# | | ????????????????????????????????????????????????# | | ????????????????????????????????????????????????# | | ????????????????????????????????????????????????? | | ?????????????????????????????????????????????????? | | ?????????????????????????????????????????????????? | | ?????????????????????????????????????????????????? | | ?????????????????????????????????????????????????? | | ?????????????????????????????????????????????????? | | ?????????????????????????????????????????????????? | | ?????????????????????????????????????????????????? | +----------------------------------------------------+ Best States ------------- Heat Dissipation 34 Energy Generation 15 Energy Capacity 150 Matter Stores 234 Matter Capacity 300 Sight Range 16 Terrain Scan Density 10 ECM Strength 1 Evasion (%) 62 Item Schematics ----------------- None Robot Schematics ------------------ None Fabricated ------------ Nothing Alien Tech Used ----------------- None Achievements -------------- None Challenges ------------ None Game ------ Seed PrecisionBehemothSuit Manual? 0 Play Time 00:07:04 Cumulative 249.7 hours Start 2024.08.25 @ 12:32:49 End 2024.08.25 @ 12:38:12 Sessions 1 Manual Loads 0 Difficulty Rogue Special Mode None Game No. 449 Rogue 447 Adventurer 2 Explorer 0 Win Type - Total 13 Types 10/0/1/2/0/0/0/0/0 Lore% 73 Gallery% 68 Achievement% 57 Wizard Run 0 Options --------- Layout 0 ASCII 0 Keyboard 1 Movement Numpad Keybinds 1 Fullscreen 2 Font 18/SmallcapsGlow Map View 76x50 Zoom Use 0% Tactical HUD 1 Map Filters NONE Filters NONE Steam 1 RUN: 32c87db1-4d5b-4cd2-ba47-07488e9217ea